bitfinex/quotes_ETHUSD_20260121
["timestamp","ask_amount","ask_price","bid_price","bid_amount"]
[1769039295819,6.6997186,2985.2,2983.7,0.98984219]
[1769039296623,6.6497186,2985.2,2983.7,0.98984219]
[1769039296818,3.2998593,2985.2,2983.7,0.98984219]
[1769039297023,6.6497186,2985.2,2983.7,0.98984219]
[1769039297847,6.69926976,2985.4,2983.7,0.98984219]
[1769039298050,6.69926976,2985.4,2983.6,3.35162406]
[1769039298051,0.67854081,2985.3,2983.9,0.98984219]
[1769039299952,6.6997186,2985.2,2983.9,0.98984219]
[1769039300262,4.02834025,2985.3,2983.9,0.98984219]
[1769039300462,7.37813969,2985.3,2983.9,0.98984219]
[1769039301142,4.02834025,2985.3,2983.9,0.98984219]
[1769039301341,0.73779909,2985.2,2984.1,0.98984219]
[1769039302464,3.34997152,2985.1,2984.1,0.98984219]
[1769039302857,6.69994304,2985.1,2984.1,0.98984219]
[1769039303065,6.69994304,2985.1,2984.1,0.99084219]
[1769039303443,3.34997152,2985.1,2984.1,0.99084219]
[1769039304366,6.69926976,2985.4,2984.1,0.99084219]
[1769039304538,7.04283156,2985.4,2984.1,0.99084219]
[1769039305147,0.3435618,2985.4,2984.2,0.98984219]
[1769039305348,3.34929832,2985.7,2984.2,0.98984219]
[1769039305539,6.69859664,2985.7,2984.2,0.98984219]
[1769039305752,10.13403331,2985.7,2984.2,0.98984219]
[1769039306069,0.08613835,2985.5,2984.2,0.98984219]
[1769039306431,6.69926976,2985.4,2984.2,0.98984219]
[1769039306666,0.67854081,2985.3,2984.2,0.98984219]
[1769039306839,0.76467916,2985.3,2984.2,0.98984219]
[1769039307569,0.76467916,2985.3,2984.1,0.001]
[1769039308769,6.6997186,2985.2,2984.1,0.001]
[1769039309741,6.6997186,2985.2,2984.1,0.99084219]
[1769039310072,0.74643978,2985.1,2984.1,0.99084219]
[1769039310671,3.35008375,2985.0,2984.1,0.99084219]
[1769039310966,6.7001675,2985.0,2984.1,0.99084219]
[1769039311138,6.7001675,2985.0,2984.1,0.001]
[1769039312446,6.7001675,2985.0,2983.5,0.98700727]
[1769039312447,0.08613835,2984.6,2983.5,0.98700727]
[1769039312649,6.70128998,2984.5,2983.5,0.98700727]
[1769039312859,0.08613835,2984.4,2983.5,0.98700727]
[1769039313037,0.08613835,2984.2,2982.7,0.98700727]
[1769039313241,0.08613835,2984.0,2982.7,0.98700727]
[1769039313470,0.08613835,2983.7,2982.7,0.98700727]
[1769039314070,0.08613835,2983.7,2982.3,1.54100727]
[1769039314590,0.08613835,2983.7,2982.1,2.23295455]
[1769039314591,0.60560984,2983.5,2982.1,2.23295455]
[1769039314757,6.70443498,2983.1,2982.1,2.23295455]
[1769039315086,0.67905733,2983.0,2982.1,2.23295455]
[1769039315581,0.67905733,2983.0,2981.0,0.00639802]
[1769039315582,0.08613835,2981.9,2981.0,0.99340529]
[1769039315785,0.08613835,2982.2,2981.0,0.99340529]
[1769039315786,0.08613835,2981.8,2981.0,0.99340529]
[1769039315988,0.08613835,2982.1,2981.0,0.99340529]
[1769039316148,0.08613835,2982.6,2981.0,0.99340529]
[1769039316350,0.08613835,2982.2,2981.0,0.99340529]
[1769039316718,0.08613835,2982.2,2980.6,0.98700727]
[1769039316719,0.08613835,2981.6,2980.6,0.98700727]
[1769039316851,0.08613835,2981.6,2980.5,0.0208706]
[1769039316852,0.08613835,2980.8,2980.5,0.0208706]
[1769039317048,0.08613835,2981.1,2980.5,0.0208706]
[1769039317261,0.35259755,2981.6,2980.5,0.0208706]
[1769039317463,4.10354803,2982.3,2980.5,1.00787787]
[1769039317464,3.35322915,2982.2,2980.5,1.00787787]
[1769039317711,3.35322915,2982.2,2980.5,0.0208706]
[1769039317712,0.08613835,2982.1,2980.5,0.0208706]
[1769039317856,6.7064583,2982.2,2980.5,1.00787787]
[1769039318755,3.35367898,2981.8,2980.5,1.00787787]
[1769039318992,3.68904688,2981.8,2980.5,1.00787787]
[1769039319287,0.3353679,2981.8,2980.5,1.00787787]
[1769039319454,0.42150625,2981.8,2980.5,1.00787787]
[1769039319660,0.42150625,2981.8,2980.5,0.0208706]
[1769039320763,3.35379146,2981.7,2980.5,0.0208706]
[1769039320962,0.37752977,2981.6,2980.5,0.0208706]
[1769039321156,0.46366812,2981.6,2980.5,0.0208706]
[1769039321357,0.37752977,2981.6,2980.5,0.0208706]
[1769039322458,0.37752977,2981.6,2980.5,1.00787787]
[1769039322773,3.73144105,2981.6,2980.5,1.00787787]
[1769039322974,0.37314411,2981.5,2980.5,0.0208706]
[1769039323179,0.37314411,2981.5,2980.5,1.00787787]
[1769039323557,0.37314411,2981.5,2980.5,4.36300117]
[1769039323765,3.3533416,2982.1,2980.6,0.98700727]
[1769039324594,6.7066832,2982.1,2980.6,0.98700727]
[1769039324790,0.08613835,2982.4,2980.6,0.98700727]
[1769039324791,6.70623344,2982.3,2980.6,0.98700727]
[1769039325181,6.70623344,2982.3,2980.7,0.98700727]
[1769039325391,3.35311672,2982.3,2980.7,0.98700727]
[1769039325592,0.33531167,2982.2,2980.9,0.98700727]
[1769039325793,3.35297049,2982.5,2980.9,0.98700727]
[1769039325999,6.70594098,2982.5,2980.9,0.98700727]
[1769039326776,3.35278885,2982.6,2981.1,0.98700727]
[1769039327306,6.7055777,2982.6,2981.1,0.98700727]
[1769039327471,0.67055777,2982.5,2981.1,0.98700727]
[1769039328084,0.002,2982.1,2981.1,0.98700727]
[1769039329197,0.002,2982.1,2981.2,0.98700727]
[1769039329716,0.08613835,2981.9,2980.8,0.98700727]
[1769039329876,0.08613835,2981.7,2980.7,0.001]
[1769039330386,0.08613835,2981.7,2980.0,0.98700727]
[1769039330387,0.08613835,2981.5,2980.0,0.98700727]
[1769039331416,0.3440096,2981.4,2980.0,0.98700727]
[1769039331575,0.3440096,2981.4,2980.3,0.98700727]
[1769039332414,3.44017358,2981.5,2980.3,0.98700727]
[1769039333279,3.44017358,2981.5,2980.3,0.95787787]
[1769039334393,0.08613835,2981.5,2980.3,0.95787787]
[1769039334910,3.44020833,2981.5,2980.3,0.95787787]
[1769039335124,0.67941641,2981.4,2980.3,0.95787787]
[1769039335424,0.63373924,2980.7,2977.2,3.528]
[1769039335726,0.08613835,2979.8,2977.4,0.98700727]
[1769039335882,1.01807843,2980.5,2978.0,0.98700727]
[1769039336082,0.93194008,2980.9,2978.5,0.98700727]
[1769039336304,0.93194008,2980.9,2978.7,0.98700727]
[1769039336526,1.61135649,2981.4,2979.1,0.98700727]
[1769039336732,1.61135649,2981.4,2979.5,0.98700727]
[1769039336733,0.67941641,2981.4,2979.5,0.98700727]
[1769039336935,3.35379146,2981.7,2979.5,0.98700727]
[1769039337205,0.93194008,2981.6,2979.5,0.98700727]
[1769039337420,3.35401643,2981.5,2979.6,0.98700727]
[1769039337621,4.12658256,2981.5,2979.6,0.98700727]
[1769039338047,0.93194008,2981.2,2979.1,0.98700727]
[1769039338202,1.01807843,2981.1,2979.1,0.98700727]
[1769039338408,1.10068921,2981.3,2979.5,6.71250007]
[1769039338605,1.01807843,2981.4,2979.6,0.98700727]
[1769039339043,0.93194008,2981.1,2979.1,0.98700727]
[1769039339226,0.08613835,2981.2,2979.1,0.98700727]
[1769039339227,0.93194008,2980.9,2979.1,0.98700727]
[1769039339428,4.28674415,2980.8,2979.1,0.98700727]
[1769039339742,0.42867442,2980.7,2979.1,0.98700727]
[1769039339959,1.32891892,2980.7,2979.1,0.98700727]
[1769039340845,0.42867442,2980.7,2979.2,0.95929313]
[1769039341142,3.35456657,2981.1,2979.2,0.95929313]
[1769039341711,1.04339282,2980.8,2978.8,0.95828744]
[1769039341948,1.04339282,2980.8,2978.9,4.3151459]
[1769039342156,1.04339282,2980.8,2979.0,0.43151459]
[1769039342649,1.04339282,2980.8,2978.9,4.3152111]
[1769039343361,1.04339282,2980.8,2978.9,0.95828744]
[1769039343510,0.95725447,2980.3,2978.7,0.001]
[1769039343732,1.04339282,2979.8,2978.7,0.001]
[1769039343930,1.04339282,2979.8,2978.0,0.95828744]
[1769039344248,1.04339282,2979.8,2977.6,0.95828744]
[1769039344457,1.01020282,2979.8,2977.6,1.29413689]
[1769039344636,0.08613835,2979.6,2977.6,1.29413689]
[1769039344837,0.08613835,2977.7,2976.6,0.17482254]
[1769039345140,24.31619002,2979.4,2975.5,2.35072314]
[1769039345141,0.08613835,2978.7,2976.7,0.95828744]
[1769039345437,6.71456388,2978.6,2976.7,0.95828744]
[1769039345637,0.76989342,2978.5,2976.7,0.95828744]
[1769039345986,0.76989342,2978.5,2976.7,4.31766877]
[1769039346336,0.09069076,2978.3,2976.3,0.95828744]
[1769039346538,0.09069076,2977.9,2976.3,0.95828744]
[1769039346940,0.76989342,2978.5,2976.6,0.95828744]
[1769039347135,0.09069076,2978.5,2976.7,0.95828744]
[1769039347334,0.09069076,2978.5,2975.8,0.64569076]
[1769039347335,0.95725447,2978.0,2975.6,0.26162593]
[1769039347581,0.95725447,2978.0,2975.5,5.88648168]
[1769039347582,0.09069076,2976.8,2975.5,5.88648168]
[1769039347872,0.09069076,2976.9,2975.6,0.95828744]
[1769039348748,0.09069076,2976.7,2975.6,0.95828744]
[1769039349069,0.09069076,2976.9,2975.5,2.35072314]
[1769039349070,0.09069076,2976.6,2975.5,2.35072314]
[1769039349284,0.95725447,2975.9,2973.7,2.63751415]
[1769039349574,0.05,2977.3,2975.8,0.09069076]
[1769039349755,0.67670445,2977.3,2975.5,1.0489782]
[1769039349954,0.67670445,2977.3,2975.7,0.09069076]
[1769039350254,3.3578456,2978.1,2976.3,0.09069076]
[1769039350455,0.95725447,2978.2,2976.7,0.09069076]
[1769039350660,0.95725447,2978.5,2976.7,0.09069076]
[1769039351058,0.95725447,2978.5,2976.3,0.09069076]
[1769039351476,0.95725447,2978.0,2975.6,0.95828744]
[1769039351657,10.0735368,2978.1,2975.6,1.0489782]
[1769039351658,0.95725447,2977.8,2975.6,1.0489782]
[1769039351859,0.95725447,2977.8,2975.8,0.09069076]
[1769039352060,0.95725447,2977.8,2976.1,0.09069076]
[1769039352258,6.7156912,2978.1,2975.8,1.0489782]
[1769039352259,0.95725447,2978.0,2975.8,1.0489782]
[1769039352465,0.95725447,2978.0,2975.4,0.09069076]
[1769039352466,0.95725447,2977.6,2975.4,3.36081661]
[1769039352650,0.95725447,2977.6,2975.5,3.45146057]
[1769039352990,0.76729457,2977.9,2975.9,0.09069076]
[1769039353284,0.76729457,2977.9,2975.9,1.0489782]
[1769039353647,0.76729457,2977.9,2976.1,0.09069076]
[1769039354263,6.71591672,2978.0,2976.0,3.36021505]
[1769039354672,3.35795836,2978.0,2976.0,6.7204301]
[1769039354874,3.35795836,2978.0,2976.0,7.67871754]
[1769039355050,3.35795836,2978.0,2976.0,4.31850249]
[1769039355253,6.71591672,2978.0,2976.0,4.31850249]
[1769039355462,0.76731712,2977.9,2976.0,4.31850249]
[1769039355666,0.76731712,2977.9,2976.0,7.7694083]
[1769039355867,3.35799703,2978.0,2976.0,4.40919325]
[1769039356091,6.71599406,2978.0,2976.0,4.40919325]
[1769039356270,0.95725447,2978.1,2976.1,0.95828744]
[1769039356457,0.95725447,2978.1,2976.0,6.81112086]
[1769039356458,0.95725447,2978.6,2976.6,0.09069076]
[1769039356651,4.31454944,2978.6,2976.6,0.09069076]
[1769039356852,0.43145494,2978.5,2976.6,1.0489782]
[1769039357046,0.95725447,2978.6,2976.6,1.0489782]
[1769039357256,3.35683115,2979.0,2976.8,1.0489782]
[1769039357454,0.95725447,2978.9,2976.8,1.0489782]
[1769039357667,3.35705653,2978.8,2976.9,3.35919916]
[1769039357869,0.76712708,2978.7,2976.9,3.35919916]
[1769039358076,0.76712708,2978.7,2976.8,1.6039782]
[1769039358077,0.76712708,2978.7,2976.8,4.40824974]
[1769039358277,0.76712708,2978.7,2976.4,3.35972342]
[1769039358278,0.95725447,2978.6,2976.4,3.35972342]
[1769039358587,0.95725447,2978.6,2976.3,0.95828744]
[1769039358588,0.95725447,2978.6,2976.5,3.35958269]
[1769039358789,0.95725447,2978.6,2976.1,0.64569076]
[1769039358790,0.95725447,2977.8,2976.1,0.555]
[1769039359576,3.35829667,2977.7,2976.1,0.555]
[1769039359955,4.31555114,2977.7,2976.1,0.555]
[1769039360160,7.67384781,2977.7,2976.1,0.555]
[1769039360370,0.95725447,2977.6,2976.1,0.555]
[1769039360560,0.95725447,2977.6,2975.7,0.001]
[1769039361070,0.95725447,2977.5,2975.7,0.001]
[1769039361258,0.95725447,2977.5,2975.7,3.36148386]
[1769039361453,0.95725447,2977.5,2975.7,0.001]
[1769039361659,0.17246393,2977.4,2975.9,0.95828744]
[1769039361972,0.95725447,2978.2,2976.1,0.95828744]
[1769039362794,0.95725447,2978.2,2976.3,0.95828744]
[1769039363795,6.7156912,2978.1,2976.3,4.31815922]
[1769039364193,0.95725447,2978.2,2976.3,4.31815922]
[1769039364358,0.95725447,2978.2,2976.3,7.67803557]
[1769039364787,3.52985805,2978.5,2976.7,0.95828744]
[1769039364992,0.78444291,2978.4,2976.7,0.95828744]
[1769039365596,0.78444291,2978.4,2976.8,1.0489782]
[1769039365899,0.002,2978.0,2977.0,1.0489782]
[1769039366210,0.002,2978.0,2977.1,0.555]
[1769039366779,0.002,2978.0,2977.0,1.0489782]
[1769039366977,0.002,2978.0,2975.7,0.001]
[1769039366978,0.95925447,2978.0,2975.7,0.001]
[1769039367320,0.95925447,2978.0,2975.7,3.91651275]
[1769039367679,0.95725447,2977.8,2975.8,3.36043045]
[1769039368616,0.95725447,2977.6,2975.7,3.91651174]
[1769039368813,0.95725447,2977.6,2975.8,0.555]
[1769039369814,6.7170445,2977.5,2975.8,0.555]
[1769039370059,0.95725447,2977.4,2975.7,0.001]
[1769039370318,0.7674299,2977.4,2976.3,0.09069076]
[1769039370519,0.7674299,2977.4,2975.7,0.95928744]
[1769039370520,21.891482,2977.7,2975.7,0.001]
[1769039370693,0.95725447,2977.6,2976.0,0.555]
[1769039371078,0.95725447,2977.6,2975.7,0.001]
[1769039371282,13.43228448,2977.9,2975.9,0.92332673]
[1769039371283,6.71614224,2977.9,2975.9,0.92332673]
[1769039371474,3.35807112,2977.9,2976.2,0.09069076]
[1769039371797,0.002,2978.0,2976.3,3.35987635]
[1769039372194,0.002,2978.0,2976.2,3.35996593]
[1769039372413,0.67176912,2977.9,2976.3,0.555]
[1769039372584,0.67176912,2977.9,2976.1,0.92332673]
[1769039372778,0.67176912,2977.9,2976.2,0.555]
[1769039372978,1.61300902,2977.9,2976.2,3.91498127]
[1769039373400,1.61300902,2977.9,2976.2,3.36843893]
[1769039373601,1.61300902,2977.9,2976.2,6.72842817]
[1769039374000,4.97115085,2977.9,2976.2,3.36843893]
[1769039375419,1.61300902,2977.9,2976.2,6.72842817]
[1769039375783,4.97109464,2977.9,2976.2,3.36843893]
[1769039376281,8.32918026,2977.9,2976.1,0.48608704]
[1769039376486,1.03193066,2977.8,2976.2,0.555]
[1769039376683,0.9412399,2977.7,2976.2,0.555]
[1769039377115,0.9412399,2977.7,2975.7,0.92432673]
[1769039377423,0.9412399,2977.7,2976.3,0.555]
[1769039378424,3.35840945,2977.6,2976.3,0.555]
[1769039378591,0.42996494,2977.5,2976.3,0.555]
[1769039378808,0.42996494,2977.5,2976.3,0.11778916]
[1769039379880,0.40277476,2977.5,2976.3,0.11778916]
[1769039380083,0.9412399,2977.4,2976.0,3.36020721]
[1769039380396,0.9412399,2977.4,2976.1,0.555]
[1769039380923,0.47025863,2977.3,2976.1,0.555]
[1769039381692,3.35835451,2977.7,2976.1,3.91507733]
[1769039382617,6.71670902,2977.7,2976.1,0.555]
[1769039383124,7.65794892,2977.7,2976.1,0.555]
[1769039383287,0.9412399,2977.5,2975.7,0.001]
[1769039383490,1.03193066,2976.5,2974.8,4.18938494]
[1769039383695,0.9412399,2976.2,2974.9,0.555]
[1769039384100,0.9412399,2976.2,2975.0,0.555]
[1769039384803,4.30123281,2976.2,2975.0,0.555]
[1769039384992,7.66018027,2976.7,2975.0,0.555]
[1769039385189,7.66018027,2976.7,2973.5,0.92632673]
[1769039385190,0.9412399,2976.3,2973.5,0.92632673]
[1769039385393,0.09069076,2974.9,2973.5,0.003]
[1769039385623,0.09069076,2974.9,2973.6,0.555]
[1769039385624,0.09069076,2974.7,2973.6,0.555]
[1769039385824,0.09069076,2974.5,2973.5,0.003]
[1769039385989,0.09069076,2973.8,2972.6,5.98588351]
[1769039386191,0.09069076,2973.8,2972.1,3.33293417]
[1769039386192,0.09069076,2973.5,2972.7,0.555]
[1769039386419,0.09069076,2973.8,2972.7,0.555]
[1769039386800,0.09069076,2974.4,2972.7,6.72785212]
[1769039386999,0.09069076,2974.2,2972.8,0.555]
[1769039387203,0.09069076,2974.4,2972.9,0.92332673]
[1769039387721,0.09069076,2974.9,2972.9,0.92332673]
[1769039387922,0.09069076,2975.3,2972.9,0.92332673]
[1769039388126,0.09069076,2975.3,2973.1,0.92332673]
[1769039388334,3.45150275,2975.5,2973.3,0.92332673]
[1769039388629,0.09069076,2975.3,2973.3,0.92332673]
[1769039388867,0.09069076,2975.3,2973.5,0.92332673]
[1769039389037,0.09069076,2975.7,2973.5,0.92332673]
[1769039389323,0.09069076,2976.1,2973.6,0.92332673]
[1769039389488,1.80701776,2976.6,2973.6,0.95694662]
[1769039389693,0.09069076,2976.2,2973.8,0.92332673]
[1769039389891,1.03193066,2976.6,2973.8,0.92332673]
[1769039390132,4.39153668,2976.6,2973.8,1.01401749]
[1769039390337,0.09069076,2976.2,2973.8,0.92332673]
[1769039390523,0.09069076,2976.2,2974.0,0.92332673]
[1769039390900,3.45071654,2976.2,2974.2,0.92332673]
[1769039391644,0.09069076,2975.6,2974.1,3.36236172]
[1769039391807,0.09069076,2975.4,2974.2,0.556]
[1769039392008,0.09069076,2975.0,2973.7,0.001]
[1769039392233,0.09069076,2975.0,2974.2,0.556]
[1769039392555,0.09069076,2975.0,2974.2,0.55000575]
[1769039393022,0.09069076,2975.6,2974.2,0.55000575]
[1769039393023,3.4515639,2975.5,2974.2,0.55000575]
[1769039393349,0.68122497,2975.4,2974.2,0.55000575]
[1769039394231,0.09069076,2976.0,2974.2,1.47333248]
[1769039394432,0.09069076,2976.0,2974.2,0.55000575]
[1769039394628,0.09069076,2976.0,2974.2,8.19781887]
[1769039395604,3.45091995,2976.0,2974.2,8.19781887]
[1769039395805,3.45091995,2976.0,2974.2,4.8355702]
[1769039396008,3.45091995,2976.0,2973.7,0.92432673]
[1769039396009,0.09069076,2975.6,2973.7,0.92432673]
[1769039396345,0.09069076,2975.6,2973.8,0.556]
[1769039396732,0.09069076,2975.6,2973.9,3.362539]
[1769039396933,0.09069076,2975.6,2974.0,3.36241452]
[1769039397337,0.09069076,2975.8,2974.0,0.92332673]
[1769039397517,0.09069076,2976.0,2974.2,0.92332673]
[1769039398846,0.09069076,2976.0,2974.3,0.556]
[1769039399258,0.09069076,2976.0,2974.4,0.556]
[1769039399459,0.09069076,2975.6,2973.8,4.28599796]
[1769039399637,0.09069076,2975.4,2973.9,0.556]
[1769039399838,0.09069076,2975.4,2974.0,0.556]
[1769039400037,0.09069076,2974.6,2974.0,1e-08]
[1769039400237,0.09069076,2974.6,2973.7,0.001]
[1769039400458,0.09069076,2974.8,2973.7,0.001]
[1769039401162,0.09069076,2974.2,2972.3,4.34984023]
[1769039401334,3.36236172,2974.1,2972.4,3.92028475]
[1769039401541,0.09069076,2974.0,2972.4,0.556]
[1769039401735,0.09069076,2974.0,2972.5,0.556]
[1769039401950,0.92593735,2974.5,2972.5,0.556]
[1769039402150,3.36153782,2974.9,2972.6,0.98752224]
[1769039402459,3.45205653,2975.0,2972.6,0.98752224]
[1769039402628,0.09069076,2975.2,2972.7,0.98752224]
[1769039403059,0.09069076,2975.0,2972.7,1.078213]
[1769039403258,0.09069076,2975.0,2972.8,0.98752224]
[1769039403460,0.92593735,2976.0,2973.4,0.98752224]
[1769039403762,0.09069076,2975.9,2973.9,0.98752224]
[1769039404333,0.09069076,2976.1,2973.9,0.98852224]
[1769039404629,0.002,2974.8,2973.9,0.98852224]
[1769039404831,0.08733076,2976.1,2973.9,0.98852224]
[1769039405170,0.002,2975.0,2973.9,0.98852224]
[1769039405370,0.002,2975.0,2974.0,0.98752224]
[1769039405670,0.09069076,2976.3,2974.2,0.98752224]
[1769039406069,0.09069076,2976.1,2974.2,0.98752224]
[1769039406275,0.09069076,2975.9,2974.2,0.98752224]
[1769039406443,0.09069076,2975.9,2974.3,0.556]
[1769039407768,0.09069076,2975.9,2974.4,6.72404518]
[1769039407978,0.09069076,2975.9,2974.4,3.36202259]
[1769039408574,0.09069076,2975.7,2974.3,0.556]
[1769039408781,0.09069076,2974.9,2974.3,0.556]
[1769039409076,0.09069076,2974.7,2973.9,0.001]
[1769039409479,0.09069076,2974.7,2972.9,3.36369732]
[1769039409480,1.01662811,2974.9,2973.0,3.36353509]
[1769039409683,0.09069076,2974.8,2973.0,0.556]
[1769039409978,0.09069076,2975.1,2973.1,6.72691644]
[1769039410185,0.09069076,2975.1,2972.7,0.98752224]
[1769039410186,0.09069076,2974.8,2972.7,0.98752224]
[1769039410341,0.09069076,2974.8,2973.2,0.556]
[1769039410542,1.01662811,2975.0,2973.2,0.556]
[1769039411375,0.21869076,2976.8,2973.2,0.556]
[1769039411376,0.92593735,2975.6,2973.2,0.556]
[1769039411599,0.92593735,2975.6,2973.3,0.98752224]
[1769039411798,0.09069076,2976.1,2973.5,0.98752224]
[1769039411799,3.45111071,2975.9,2973.5,0.98752224]
[1769039412001,0.35418015,2975.7,2973.7,0.98752224]
[1769039412299,0.09069076,2975.9,2973.7,0.98752224]
[1769039412508,0.09069076,2975.7,2973.8,0.556]
[1769039413406,3.45125968,2975.7,2973.9,6.72517568]
[1769039413700,0.09069076,2975.5,2973.9,0.556]
[1769039414087,0.34512597,2975.6,2973.9,0.556]
[1769039414505,0.92593735,2975.7,2973.9,0.556]
[1769039414832,0.09069076,2975.8,2973.8,3.36259419]
[1769039415115,1.01662811,2975.6,2973.7,3.91874725]
[1769039415286,3.3607797,2975.5,2973.8,3.36269052]
[1769039415485,0.77380833,2975.4,2973.8,3.36269052]
[1769039415916,0.77380833,2975.4,2973.8,6.72539144]
[1769039416135,0.92593735,2975.6,2973.8,6.72539144]
[1769039416625,0.92593735,2975.6,2973.8,3.36269052]
[1769039416785,0.09069076,2976.2,2973.8,3.36269052]
[1769039416786,0.92593735,2976.1,2973.8,7.71291368]
[1769039416986,0.92593735,2976.1,2973.9,0.98752224]
[1769039416987,0.76459158,2976.0,2973.9,0.98752224]
[1769039417392,3.35976037,2976.5,2974.1,0.98752224]
[1769039418019,3.35976037,2976.5,2974.2,0.556]
[1769039418020,0.92593735,2976.1,2974.2,0.556]
[1769039418389,0.92593735,2976.1,2974.2,1.54352224]
[1769039418589,0.002,2975.7,2974.2,1.54352224]
[1769039418820,0.002,2975.7,2974.3,0.98752224]
[1769039419439,0.002,2975.7,2974.5,0.98752224]
[1769039421817,0.002,2975.7,2974.8,0.98752224]
[1769039422138,0.92194363,2977.1,2974.9,0.98752224]
[1769039422842,3.36054748,2977.5,2975.1,0.98752224]
[1769039423638,0.92593735,2977.0,2975.2,6.72223716]
[1769039423804,0.92593735,2977.0,2975.2,7.27823716]
[1769039424829,0.92593735,2977.3,2975.2,7.7097594]
[1769039425141,0.92593735,2977.0,2975.3,0.556]
[1769039425638,0.92593735,2976.8,2974.8,3.84]
[1769039425939,0.92593735,2976.1,2974.2,0.98752224]
[1769039426141,0.92593735,2976.1,2974.7,3.91760175]
[1769039426350,0.92593735,2976.1,2974.8,3.36151255]
[1769039426522,0.92593735,2976.6,2974.8,3.36151255]
[1769039426722,0.92593735,2976.6,2974.5,3.36183463]
[1769039426723,0.92593735,2976.3,2974.5,3.36183463]
[1769039426924,0.92593735,2976.3,2974.9,0.556]
[1769039428248,0.92593735,2976.3,2974.9,3.91739315]
[1769039428618,0.92593735,2976.3,2974.9,0.556]
[1769039428847,0.92593735,2976.3,2974.9,3.91745334]
[1769039429377,1.01662811,2976.2,2974.4,0.556]
[1769039429666,0.92593735,2976.0,2974.4,0.556]
[1769039429864,0.92593735,2975.9,2974.4,0.556]
[1769039430422,0.92593735,2975.9,2974.1,3.36229177]
[1769039430687,0.92593735,2975.9,2973.9,3.36351766]
[1769039430688,0.92593735,2975.6,2973.9,3.36351766]
[1769039430970,0.92593735,2975.2,2973.9,0.001]
[1769039431125,0.92593735,2975.2,2973.9,1.92e-06]
[1769039431953,0.94779171,2974.5,2973.9,1.92e-06]
[1769039432124,0.94779171,2974.5,2973.2,0.556]
[1769039433628,0.09069076,2974.8,2973.2,0.556]
[1769039433828,6.72336706,2974.7,2973.2,0.556]
[1769039434055,6.72336706,2974.7,2972.9,0.003]
[1769039434056,1.03848247,2974.6,2972.9,0.003]
[1769039434376,1.03848247,2973.8,2972.3,0.556]
[1769039434577,0.94779171,2974.4,2972.8,3.36375581]
[1769039434778,0.94779171,2974.4,2972.4,0.92480068]
[1769039435073,3.3616102,2974.8,2972.9,3.36369763]
[1769039435249,0.68139112,2974.7,2972.4,1.01549144]
[1769039435456,0.68139112,2974.7,2973.1,3.36346715]
[1769039435666,0.68139112,2974.7,2972.8,0.92480068]
[1769039435864,4.9909071,2974.7,2972.9,3.36371892]
[1769039436055,0.83524994,2974.6,2972.9,6.72743784]
[1769039436255,3.45197121,2975.1,2973.0,0.92480068]
[1769039436577,3.36128045,2975.1,2973.0,0.92480068]
[1769039436773,0.43090722,2975.0,2973.0,0.92480068]
[1769039436979,0.94779171,2974.9,2973.0,0.92480068]
[1769039437980,0.94779171,2974.9,2973.1,3.36349265]
[1769039439576,0.94779171,2974.9,2973.1,7.65178598]
[1769039439760,0.94779171,2975.4,2973.2,1.01549144]
[1769039440080,0.94779171,2975.4,2973.5,0.92480068]
[1769039440648,0.94779171,2975.8,2973.5,0.92480068]
[1769039440848,4.30823259,2975.8,2973.5,0.92480068]
[1769039441354,0.43082326,2975.7,2973.7,0.92480068]
[1769039441686,0.09069076,2973.7,2972.4,0.92480068]
[1769039441846,0.09069076,2973.3,2971.9,4.28958793]
[1769039442048,0.09069076,2973.9,2972.3,6.72879588]
[1769039442280,0.09069076,2973.9,2972.3,7.65359656]
[1769039442790,0.09069076,2973.9,2972.3,11.0179945]
[1769039443280,0.09069076,2974.1,2972.6,0.92580068]
[1769039443479,0.09069076,2973.9,2972.7,0.556]
[1769039444255,0.09069076,2974.5,2972.8,7.65246482]
[1769039444493,0.09069076,2974.3,2972.8,7.65246482]
[1769039444701,0.09069076,2974.5,2972.8,11.01629689]
[1769039444865,0.09069076,2974.3,2972.8,11.01629689]
[1769039445201,0.09069076,2974.3,2972.8,7.65246482]
[1769039446193,0.09069076,2974.2,2972.9,0.556]
[1769039446368,0.09069076,2973.8,2972.6,0.001]
[1769039446564,0.09069076,2973.8,2972.7,0.556]
[1769039446975,0.09069076,2973.8,2972.6,0.001]
[1769039446976,0.09069076,2973.1,2972.6,0.001]
[1769039447153,1.03848247,2973.6,2972.7,0.556]
[1769039447860,0.94779171,2974.1,2972.7,0.556]
[1769039448161,0.09069076,2974.2,2972.7,0.556]
[1769039448353,0.09069076,2974.2,2972.7,3.91988897]
[1769039449723,0.09069076,2974.2,2972.7,3.36388897]
[1769039450024,0.09069076,2974.2,2972.8,0.556]
[1769039450236,0.002,2974.7,2972.9,0.92480068]
[1769039450393,0.09069076,2974.6,2973.0,7.65201224]
[1769039450927,0.002,2974.7,2973.2,0.92480068]
[1769039451428,0.002,2974.9,2973.6,0.92480068]
[1769039451636,0.94779171,2976.4,2974.0,0.92480068]
[1769039451801,0.94779171,2976.4,2974.2,0.92480068]
[1769039452004,0.94779171,2976.4,2974.4,0.92480068]
[1769039452403,0.94779171,2976.4,2974.5,11.01052936]
[1769039452587,0.94779171,2976.4,2974.6,0.556]
[1769039454336,0.94779171,2976.4,2974.7,6.72336706]
[1769039456303,0.94779171,2976.3,2974.0,0.92480068]
[1769039456507,0.94779171,2976.2,2974.2,3.36217411]
[1769039456932,1.03848247,2976.2,2974.1,6.72472344]
[1769039457096,1.03848247,2976.2,2974.8,0.001]
[1769039457418,1.04048247,2976.2,2974.8,0.001]
[1769039457616,0.94779171,2975.5,2974.0,3.36244417]
[1769039457802,0.94779171,2975.5,2974.1,0.64669076]
[1769039458129,0.94779171,2976.0,2974.3,0.09069076]
[1769039458327,0.94779171,2976.0,2974.4,10.08606777]
[1769039458628,0.94779171,2976.0,2974.4,6.72404518]
[1769039459126,0.94779171,2975.9,2974.5,0.556]
[1769039460936,3.36200454,2976.2,2974.5,0.556]
[1769039460937,0.002,2976.2,2974.6,6.72359308]
[1769039461595,0.002,2976.2,2974.7,0.99263912]
[1769039461800,0.002,2976.2,2974.9,0.09069076]
[1769039462027,1.00006893,2976.2,2974.6,3.36179654]
[1769039462330,0.99806893,2976.0,2974.7,0.556]
[1769039462500,0.99806893,2976.0,2974.3,3.36210732]
[1769039462832,0.99806893,2976.0,2974.8,0.556]
[1769039463019,4.35836061,2976.0,2974.8,0.556]
[1769039463398,0.99806893,2976.0,2974.8,7.27913659]
[1769039463630,0.002,2976.2,2974.8,3.91756607]
[1769039463831,0.33618766,2976.1,2974.8,3.91756607]
[1769039464010,0.002,2976.2,2974.8,7.27913659]